bitfinex/quotes_ETHUSD_20240822
["timestamp","ask_amount","ask_price","bid_price","bid_amount"]
[1724345808456,2.90249658,2610.4,2609.5,0.1255171]
[1724345808746,3.83121,2610.2,2609.6,6.138]
[1724345809114,3.83092,2610.4,2609.8,3.83168]
[1724345809309,0.06042858,2610.1,2609.8,3.83168]
[1724345809538,3.83091,2610.4,2609.8,3.83168]
[1724345809753,0.06042858,2610.0,2609.8,3.83168]
[1724345809947,3.83113,2610.2,2609.6,9.96989]
[1724345810157,0.06042858,2609.9,2609.6,9.96989]
[1724345810455,3.83113,2610.2,2609.8,2.4485]
[1724345812425,3.83114,2610.2,2609.8,2.4485]
[1724345813062,7.66235,2610.2,2609.8,2.4485]
[1724345813220,3.83127,2610.1,2609.8,2.4485]
[1724345813735,3.83142,2610.0,2609.8,2.4485]
[1724345814833,0.06042858,2609.9,2609.8,2.4485]
[1724345815039,7.66238,2610.2,2609.8,2.4485]
[1724345815232,3.89134304,2610.1,2609.8,2.4485]
[1724345815639,0.06006304,2610.1,2609.8,2.4485]
[1724345815840,3.89142304,2610.1,2609.8,2.4485]
[1724345816136,3.83145,2610.0,2609.8,2.4485]
[1724345816763,0.06006304,2609.9,2609.8,2.4485]
[1724345817861,3.83135,2610.1,2609.8,2.4485]
[1724345818170,3.89148304,2610.0,2609.8,2.4485]
[1724345818362,3.83156,2609.9,2609.8,2.4485]
[1724345818665,0.05962791,2609.9,2609.8,2.4485]
[1724345820169,3.89118791,2609.9,2609.8,2.4485]
[1724345820369,4.6634487,2609.9,2609.8,2.4485]
[1724345820684,3.89118791,2609.9,2609.8,2.4485]
[1724345821176,0.05962791,2609.9,2609.8,2.4485]
[1724345822573,3.83085,2610.4,2609.8,2.4485]
[1724345822574,3.83127,2610.1,2609.8,2.4485]
[1724345822773,0.05754117,2609.9,2609.8,2.4485]
[1724345822969,3.83143,2610.0,2609.8,2.4485]
[1724345823152,0.05754117,2609.9,2609.8,2.4485]
[1724345823363,3.88910117,2609.9,2609.8,2.4485]
[1724345823655,0.05754117,2609.9,2609.8,2.4485]
[1724345824944,0.05754117,2609.9,2609.5,3.9576671]
[1724345824945,0.05754117,2609.9,2609.6,2.4512]
[1724345825269,3.83099,2610.3,2609.6,2.4512]
[1724345825270,3.83178,2609.8,2609.6,2.4512]
[1724345825476,0.05754117,2609.7,2609.6,2.4512]
[1724345825835,3.83178,2609.8,2609.6,2.4512]
[1724345826035,0.05754117,2609.7,2609.6,2.4512]
[1724345826393,3.83173,2609.8,2609.6,2.4512]
[1724345826674,3.83173,2609.8,2609.5,0.1255171]
[1724345826675,0.05754117,2609.7,2609.5,0.1255171]
[1724345826836,3.832,2609.6,2609.5,0.1255171]
[1724345827040,3.88954117,2609.6,2609.5,0.1255171]
[1724345828302,0.05754117,2609.6,2609.5,0.1255171]
[1724345829377,3.83172,2609.8,2609.5,0.1255171]
[1724345829546,0.05754117,2609.6,2609.5,0.1255171]
[1724345829745,3.83172,2609.8,2609.5,0.1255171]
[1724345829940,0.05754117,2609.6,2609.5,0.1255171]
[1724345830135,3.83165,2609.9,2609.5,0.1255171]
[1724345830343,0.05754117,2609.6,2609.5,0.1255171]
[1724345830871,4.214895,2609.8,2609.5,0.1255171]
[1724345831165,0.05754117,2609.7,2609.5,0.1255171]
[1724345831580,3.83173,2609.8,2609.5,0.1255171]
[1724345831885,3.8319,2609.7,2609.5,0.1255171]
[1724345832062,0.05754117,2609.6,2609.5,0.1255171]
[1724345832263,7.66357,2609.8,2609.5,0.1255171]
[1724345832473,0.05754117,2609.7,2609.5,0.1255171]
[1724345832647,3.8316,2609.9,2609.6,2.4374]
[1724345832841,0.05729124,2609.8,2609.6,2.4374]
[1724345833483,3.83142,2610.0,2609.6,2.4374]
[1724345833784,3.8313,2610.1,2609.6,2.4374]
[1724345833785,3.88887124,2609.9,2609.6,2.4374]
[1724345834282,3.83176,2609.8,2609.6,2.4374]
[1724345834676,0.05729124,2609.7,2609.6,2.4374]
[1724345834878,3.83176,2609.8,2609.6,2.4374]
[1724345835088,3.832,2609.6,2609.5,0.1255171]
[1724345835629,0.05729124,2609.6,2609.5,0.1255171]
[1724345841093,7.72129124,2609.6,2609.5,0.1255171]
[1724345842779,3.88929124,2609.6,2609.5,0.1255171]
[1724345843181,10.11409124,2609.6,2609.5,0.1255171]
[1724345843382,17.49609124,2609.6,2609.5,0.1255171]
[1724345844172,13.66409124,2609.6,2609.5,0.1255171]
[1724345844369,17.49609124,2609.6,2609.5,0.1255171]
[1724345845638,13.66409124,2609.6,2609.5,0.1255171]
[1724345845772,13.66409124,2609.6,2609.5,2.4457171]
[1724345845773,0.05729124,2609.6,2609.5,2.4457171]
[1724345845971,0.05729124,2609.6,2609.5,3.07353081]
[1724345846173,2.77,2609.8,2609.5,3.07353081]
[1724345846385,0.05467706,2609.6,2609.5,3.07353081]
[1724345846630,6.60171,2609.8,2609.5,3.07353081]
[1724345846807,0.05478186,2609.6,2609.5,2.4457171]
[1724345847008,6.60171,2609.8,2609.5,2.4457171]
[1724345847221,0.05478186,2609.6,2609.5,2.4457171]
[1724345847380,3.83194,2609.7,2609.5,2.4457171]
[1724345847580,0.05478186,2609.6,2609.5,2.4457171]
[1724345848326,6.60171,2609.8,2609.5,2.4457171]
[1724345848521,0.05491575,2609.6,2609.5,2.4457171]
[1724345848681,6.60171,2609.8,2609.5,2.4457171]
[1724345849012,0.05491575,2609.7,2609.5,2.4457171]
[1724345849380,10.4335,2609.8,2609.5,2.4457171]
[1724345849582,0.05491575,2609.6,2609.5,2.4457171]
[1724345849789,6.60171,2609.8,2609.5,2.4457171]
[1724345849988,0.05491575,2609.6,2609.5,2.4457171]
[1724345850214,3.83194,2609.7,2609.5,2.4457171]
[1724345850430,0.05491575,2609.6,2609.5,0.1255171]
[1724345851186,3.88691575,2609.6,2609.5,0.1255171]
[1724345851388,7.71891575,2609.6,2609.5,0.1255171]
[1724345853128,11.55091575,2609.6,2609.5,0.1255171]
[1724345853300,15.10091575,2609.6,2609.5,0.1255171]
[1724345861117,21.42211575,2609.6,2609.5,0.1255171]
[1724345861456,21.42211575,2609.6,2608.0,6.83425]
[1724345861457,3.83373,2608.5,2608.1,0.59979585]
[1724345861656,3.83373,2608.5,2607.8,6.26552]
[1724345861657,3.83373,2608.5,2607.8,2.5122411]
[1724345861810,0.05457807,2608.4,2608.1,3.83419]
[1724345862014,3.83346,2608.7,2608.2,2.4309]
[1724345862329,3.8879549,2608.6,2608.2,2.4309]
[1724345862514,0.0544849,2608.6,2608.2,6.26492]
[1724345863544,0.0544849,2608.6,2608.3,3.8339]
[1724345863911,0.0544849,2608.6,2608.2,2.4309]
[1724345863912,3.83334,2608.7,2608.2,6.26495]
[1724345864139,0.0544849,2608.6,2608.2,6.26495]
[1724345864352,0.0544849,2608.6,2608.2,2.4309]
[1724345864806,3.8879549,2608.6,2608.2,2.4309]
[1724345865737,3.8880049,2608.6,2608.2,2.4309]
[1724345865934,3.83371,2608.5,2608.2,2.4309]
[1724345866151,0.0544849,2608.6,2608.2,2.4309]
[1724345866365,3.83338,2608.7,2608.2,2.4309]
[1724345866561,0.0544849,2608.5,2608.2,6.26495]
[1724345866775,3.83338,2608.7,2608.2,6.26495]
[1724345866915,0.0544849,2608.4,2608.2,6.26495]
[1724345867266,3.83338,2608.7,2608.3,3.83391]
[1724345867571,3.83338,2608.7,2608.2,3.440802]
[1724345867717,0.0544849,2608.6,2608.2,2.4309]
[1724345867914,0.0544849,2608.6,2608.2,6.26486]
[1724345868175,0.0544849,2608.6,2608.3,3.8339]
[1724345868518,3.83336,2608.7,2608.2,2.4309]
[1724345868819,0.0544849,2608.6,2608.2,6.26493]
[1724345870559,0.0544849,2608.6,2608.3,3.83389]
[1724345870721,0.0544849,2608.6,2608.4,2.3764]
[1724345870919,6.60308,2608.9,2608.4,6.2101]
[1724345871115,0.0544849,2608.5,2608.4,6.2101]
[1724345871426,6.60308,2608.9,2608.4,2.3764]
[1724345871427,3.83318,2608.8,2608.4,2.3764]
[1724345871651,0.0544849,2608.5,2608.4,2.3764]
[1724345871854,3.83357,2608.6,2608.4,2.3764]
[1724345872055,0.0544849,2608.5,2608.4,2.3764]
[1724345872601,0.0544849,2608.5,2608.1,7.66828]
[1724345872602,0.0544849,2608.5,2608.2,2.2975]
[1724345873283,0.0544849,2608.5,2608.2,6.13147]
[1724345873597,3.83324,2608.8,2608.4,2.3943]
[1724345874788,7.66655,2608.8,2608.4,2.3943]
[1724345874993,3.8878149,2608.7,2608.4,2.3943]
[1724345875195,0.0544849,2608.7,2608.4,6.22804]
[1724345875498,3.83324,2608.8,2608.4,2.3943]
[1724345875641,0.0544849,2608.6,2608.4,2.3943]
[1724345876061,3.83324,2608.8,2608.4,2.3943]
[1724345876268,0.0544849,2608.5,2608.4,2.3943]
[1724345876478,3.83324,2608.8,2608.4,2.3943]
[1724345876989,0.0541762,2608.7,2608.4,2.3943]
[1724345877438,3.83324,2608.8,2608.5,2.3425]
[1724345877638,0.0541762,2608.6,2608.5,2.3425]
[1724345877843,3.83324,2608.8,2608.5,2.3425]
[1724345878051,0.0541762,2608.6,2608.5,2.3425]
[1724345878278,7.66652,2608.8,2608.5,2.3425]
[1724345878591,3.83347,2608.6,2608.5,2.3425]
[1724345878737,3.83371,2608.5,2608.2,2.327]
[1724345879151,0.0541762,2608.4,2608.2,2.327]
[1724345879552,0.0541762,2608.4,2608.2,6.16098]
[1724345879743,3.83349,2608.6,2608.2,6.16098]
[1724345880376,0.0541762,2608.5,2608.3,3.83391]
[1724345880590,3.83333,2608.7,2608.3,3.83391]
[1724345880794,0.0541762,2608.4,2608.3,3.83391]
[1724345880938,3.83333,2608.7,2608.3,3.83391]
[1724345881143,0.0541762,2608.4,2608.3,3.83391]
[1724345881337,3.8335,2608.6,2608.2,2.327]
[1724345881541,0.0541762,2608.4,2608.2,6.16104]
[1724345881774,4.876966,2608.7,2608.2,2.327]
[1724345881775,3.83333,2608.7,2608.2,2.327]
[1724345881995,3.83333,2608.7,2608.3,3.83391]
[1724345882343,3.83318,2608.8,2608.3,7.66773]
[1724345882544,3.83318,2608.8,2608.4,2.3678]
[1724345883104,3.83318,2608.8,2608.4,6.20155]
[1724345883245,6.60304,2608.9,2608.4,6.20155]
[1724345883778,3.83341,2608.7,2608.4,2.3678]
[1724345884391,3.83347,2608.6,2608.4,2.3678]
[1724345884702,3.83362,2608.5,2608.4,2.3678]
[1724345884886,3.83362,2608.5,2608.3,2.3468]
[1724345885202,3.83391,2608.3,2608.0,2.3468]
[1724345885599,3.83414,2608.2,2608.0,2.3468]
[1724345885930,3.83414,2608.2,2607.8,0.0813411]
[1724345887217,3.83432,2608.1,2607.8,0.0813411]
[1724345887762,3.83364,2608.5,2607.8,0.0813411]
[1724345887983,7.66737,2608.5,2608.0,2.4675]
[1724345888304,4.89786576,2608.5,2608.0,6.30184]
[1724345888513,3.83364,2608.5,2608.1,3.8342]
[1724345888729,3.83364,2608.5,2608.0,6.30183]
[1724345888730,7.66734,2608.5,2608.0,6.30183]
[1724345889188,3.83364,2608.5,2608.0,6.30183]
[1724345889510,3.83364,2608.5,2608.1,3.83419]
[1724345889709,6.83343,2608.7,2608.1,3.83411]
[1724345889869,3.83349,2608.6,2608.1,3.83411]
[1724345890077,3.8337,2608.5,2608.0,6.30177]
[1724345890703,0.05392575,2608.4,2608.0,6.30177]
[1724345892743,3.88769575,2608.4,2608.0,6.30177]
[1724345893125,3.88769575,2608.4,2608.0,2.4675]
[1724345893325,4.59176927,2608.4,2608.0,2.4675]
[1724345893653,4.59176927,2608.4,2607.8,3.9159611]
[1724345893654,3.83398,2608.3,2607.8,3.9159611]
[1724345893838,3.83423,2608.1,2607.8,0.0813411]
[1724345894040,3.83443,2608.0,2607.8,0.0813411]
[1724345894226,0.05392575,2608.0,2607.8,0.0813411]
[1724345894431,3.88830575,2608.0,2607.8,0.0813411]
[1724345895319,3.8345,2607.9,2607.8,0.0813411]
[1724345895726,0.05392575,2607.9,2607.8,0.0813411]
[1724345896941,3.83408,2608.2,2607.8,0.0813411]
[1724345897221,0.05392575,2608.1,2607.8,0.0813411]
[1724345897820,3.83377,2608.4,2607.9,2.3235]
[1724345898019,3.83362,2608.5,2608.1,2.3235]
[1724345898359,3.83382,2608.4,2608.1,2.3235]
[1724345898575,3.83362,2608.5,2608.1,2.3235]
[1724345898576,3.83392,2608.3,2608.1,2.3235]
[1724345899384,3.8337,2608.5,2608.1,2.3235]
[1724345899385,7.66743,2608.5,2608.1,2.3235]
[1724345899608,8.3508,2608.5,2608.1,2.3235]
[1724345899752,8.35081,2608.5,2608.1,2.3235]
[1724345900294,3.83379,2608.4,2608.1,2.3235]
[1724345902250,3.0,2608.7,2608.1,2.40018106]
[1724345902457,3.0,2608.7,2608.1,3.02362417]
[1724345902761,3.83355,2608.6,2608.1,2.94694311]
[1724345903550,3.83363,2608.5,2608.1,2.94694311]
[1724345904355,3.83363,2608.5,2608.1,2.3235]
[1724345905093,0.05366359,2608.4,2608.1,2.3235]
[1724345907000,3.88743359,2608.4,2608.1,2.3235]
[1724345907497,7.72131359,2608.4,2608.1,2.3235]
[1724345907693,3.83394,2608.3,2608.1,2.3235]
[1724345908014,3.83394,2608.3,2607.8,0.0813411]
[1724345908015,3.83442,2608.0,2607.8,2.4018411]
[1724345908174,3.83442,2608.0,2607.8,0.0813411]
[1724345908598,0.05366359,2607.9,2607.8,0.0813411]
[1724345912215,3.83395,2608.3,2607.8,3.9159811]
[1724345912424,3.83395,2608.3,2607.9,2.2552]
[1724345912425,4.600729,2608.3,2607.9,2.2552]
[1724345912579,0.766779,2608.3,2607.8,0.0813411]
[1724345912783,3.83384,2608.4,2607.8,3.9159111]
[1724345913022,7.6677,2608.4,2607.9,2.2552]
[1724345913398,7.66773,2608.4,2607.9,2.2552]
[1724345913597,3.83384,2608.4,2607.9,2.2552]
[1724345914747,2.3014,2608.6,2607.9,6.08969]
[1724345914748,3.83365,2608.5,2607.9,6.08969]
[1724345914922,3.83355,2608.6,2608.1,2.393]
[1724345914923,3.0,2608.4,2608.1,2.393]
[1724345915082,3.0,2608.5,2608.1,2.393]
[1724345915289,6.83363,2608.5,2608.1,2.393]
[1724345915588,3.83377,2608.4,2608.1,2.393]
[1724345917389,3.83326,2608.8,2608.2,2.2504]
[1724345917692,3.83347,2608.6,2608.2,2.2504]
[1724345918388,3.83326,2608.8,2608.2,2.858859]
[1724345918721,3.83326,2608.8,2608.3,9.95346]
[1724345918887,3.0,2608.7,2608.3,6.11963]
[1724345919628,2.77,2608.9,2608.4,2.2858]
[1724345919925,2.77,2608.9,2608.6,2.2908]
[1724345920116,3.83319,2608.8,2608.6,2.2908]
[1724345921803,7.66645,2608.8,2608.6,2.2908]
[1724345922001,3.83319,2608.8,2608.6,2.2908]
[1724345922221,8.710076,2608.8,2608.6,2.2908]
[1724345922385,4.876806,2608.8,2608.6,2.2908]
[1724345925587,2.77,2608.9,2608.6,2.2908]
[1724345925987,2.77,2608.9,2608.6,6.12425]
[1724345926212,2.77,2608.9,2608.6,2.2908]
[1724345927126,6.60306,2608.9,2608.6,2.2908]
[1724345929906,2.77,2608.9,2608.6,2.2908]
[1724345930100,6.6031,2608.9,2608.6,2.2908]
[1724345931235,2.77,2608.9,2608.7,2.3283]
[1724345931799,3.83269,2609.2,2608.7,2.3283]
[1724345932000,3.83269,2609.2,2608.8,5.48615]
[1724345933021,7.66535,2609.2,2608.8,1.653]
[1724345933229,3.83276,2609.1,2608.8,1.653]
[1724345933738,3.8326,2609.2,2608.8,1.653]
[1724345934101,7.66529,2609.2,2608.8,1.653]
[1724345934309,3.8326,2609.2,2608.8,1.653]
[1724345934803,3.88519214,2609.1,2608.8,1.653]
[1724345935714,0.05239214,2609.1,2608.8,1.653]
[1724345936163,0.05239214,2609.1,2609.0,1.653]
[1724345936334,0.05239214,2609.1,2608.9,2.3495]
[1724345936512,3.83253,2609.3,2609.0,1.65192843]
[1724345937144,3.83253,2609.3,2609.1,2.45]
[1724345937717,3.83226,2609.5,2609.1,2.45]
[1724345937927,3.83246,2609.3,2609.1,2.45]
[1724345938137,7.66499,2609.3,2609.1,2.45]
[1724345938335,3.83259,2609.2,2609.1,2.45]
[1724345938848,3.83181,2609.8,2609.2,6.1468]
[1724345939046,3.83159,2609.9,2609.2,6.1468]
[1724345939342,3.83186,2609.7,2609.2,2.3143]
[1724345939706,3.83186,2609.7,2609.2,6.14687]
[1724345939906,3.83186,2609.7,2609.2,7.144834]
[1724345940109,3.83186,2609.7,2609.2,7.144784]
[1724345940323,3.83186,2609.7,2609.2,7.144764]
[1724345941173,3.83172,2609.8,2609.3,6.15362]
[1724345941310,3.83172,2609.8,2609.3,4.9308284]
[1724345941510,3.83121,2610.2,2609.6,2.3212]
[1724345941741,3.8312,2610.2,2609.7,0.23212]
[1724345941944,3.83128,2610.1,2609.6,6.15319]
[1724345942151,3.8312,2610.2,2609.6,6.15319]
[1724345942337,3.8312,2610.2,2609.7,3.83184]
[1724345943028,3.83127,2610.1,2609.6,6.1532]
[1724345944122,3.83127,2610.1,2609.6,7.151725]
[1724345944324,7.66245,2610.2,2609.6,7.151725]
[1724345944658,3.8312,2610.2,2609.7,3.83185]
[1724345944957,7.66243,2610.2,2609.8,2.4824]
[1724345945160,3.83127,2610.1,2609.8,2.4824]
[1724345946550,7.66208,2610.3,2609.8,2.4824]
[1724345946751,3.0,2610.2,2609.8,2.4824]
[1724345947248,6.60083,2610.4,2609.9,3.83156]
[1724345947626,6.60083,2610.4,2610.0,2.3989]
[1724345948378,3.831,2610.3,2610.0,2.3989]
[1724345948528,7.66208,2610.3,2610.0,2.3989]
[1724345948927,3.831,2610.3,2610.0,2.3989]
[1724345949125,7.66209,2610.3,2610.0,2.3989]
[1724345949446,3.831,2610.3,2610.0,2.3989]
[1724345949848,0.05359292,2610.2,2610.0,2.3989]
[1724345950039,3.831,2610.3,2610.0,2.3989]
[1724345950243,0.05359292,2610.1,2610.0,2.3989]
[1724345950567,3.831,2610.3,2610.0,2.3989]
[1724345950730,0.05359292,2610.1,2610.0,2.3989]
[1724345950926,3.831,2610.3,2610.0,2.3989]
[1724345951130,0.05359292,2610.1,2610.0,2.3989]
[1724345951343,2.77,2610.4,2610.0,2.3989]
[1724345951544,0.05359292,2610.1,2610.0,2.3989]
[1724345951783,3.83048,2610.7,2610.1,6.18645]
[1724345951960,3.83048,2610.7,2610.3,2.3552]
[1724345952282,3.83024,2610.8,2610.4,2.3341]
[1724345952448,3.83017,2610.9,2610.4,6.16489]
[1724345952870,7.65977,2611.1,2610.5,3.83061]
[1724345953073,3.82985,2611.1,2610.6,3.83051]
[1724345953653,3.83003,2611.0,2610.5,2.4297]
[1724345953885,1.042988,2611.0,2610.5,2.4297]
[1724345954088,3.83041,2610.7,2610.5,2.4297]
[1724345954569,3.8301,2610.9,2610.5,2.4297]
[1724345954882,3.83025,2610.8,2610.5,2.4297]
[1724345955458,3.8304,2610.7,2610.5,2.4297]
[1724345955660,8.34241176,2610.7,2610.5,2.4297]
[1724345955865,3.83082,2610.5,2610.1,2.4297]
[1724345956389,8.34249176,2610.7,2610.1,6.26089]
[1724345956681,3.83062,2610.6,2610.1,2.4297]
[1724345956886,4.66488318,2610.6,2610.1,2.4297]
[1724345957249,3.8307,2610.5,2610.1,2.4297]
[1724345959676,3.83084,2610.4,2610.1,2.4297]
[1724345960086,3.8307,2610.5,2610.1,2.4297]
[1724345960487,7.66148,2610.5,2610.1,2.4297]
[1724345960691,0.766148,2610.4,2610.1,2.4297]
[1724345960890,3.8307,2610.5,2610.1,2.4297]
[1724345961093,7.66152,2610.5,2610.1,2.4297]
[1724345961483,3.83075,2610.5,2610.1,2.4297]
[1724345962369,3.83012,2610.9,2610.1,2.4297]
[1724345962370,3.8309,2610.4,2610.1,2.4297]
[1724345962575,4.21414,2610.3,2609.8,2.4276]
[1724345962772,3.83114,2610.2,2609.8,2.4276]
[1724345962984,3.83127,2610.1,2609.8,2.4276]
[1724345963183,3.83114,2610.2,2609.8,2.4276]
[1724345963817,4.635652,2610.2,2609.8,2.4276]
[1724345964110,3.83141,2610.0,2609.6,2.4004]
[1724345964296,3.83141,2610.0,2609.6,6.22191939]
[1724345964482,6.28752,2610.2,2609.6,6.22191939]
[1724345964483,3.83127,2610.1,2609.6,6.22191939]
[1724345964689,3.83122,2610.2,2609.7,3.83184]
[1724345964884,0.05401242,2610.0,2609.7,3.83184]
[1724345965078,4.881373,2610.2,2609.7,3.83184]
[1724345965273,0.05401242,2609.9,2609.7,3.83184]
[1724345965614,0.05401242,2609.8,2609.7,3.83184]
[1724345965814,3.83122,2610.2,2609.7,3.83184]
[1724345966016,0.05396582,2610.1,2609.7,3.83184]
[1724345966356,0.05396582,2610.1,2609.7,3.87483061]
[1724345966503,0.05396582,2610.1,2609.9,3.83154]
[1724345966840,0.05399494,2610.0,2609.9,3.83154]
[1724345967010,6.83098,2610.3,2609.7,8.05103306]
[1724345967211,0.05399494,2610.2,2609.9,6.15108]
[1724345967538,3.0,2610.3,2609.9,6.15108]
[1724345967712,0.05398912,2610.1,2609.9,9.98255]
[1724345967911,3.0,2610.3,2609.9,6.15107]
[1724345968113,0.05398912,2610.0,2609.9,6.15107]
[1724345968318,6.83101,2610.3,2609.9,6.15107]
[1724345968534,0.05398912,2610.0,2609.9,6.15107]
[1724345968718,3.0,2610.3,2609.9,6.15107]
[1724345968916,0.05398912,2610.0,2609.9,6.15107]
[1724345969121,3.0,2610.3,2609.9,7.149352]
[1724345969332,6.83083,2610.4,2609.9,7.149352]
[1724345969539,6.83083,2610.4,2609.9,9.98255]
[1724345969910,6.83083,2610.4,2609.9,6.15107]
[1724345971345,7.66174,2610.4,2609.9,6.15107]
[1724345971652,3.83083,2610.4,2609.9,6.15107]
[1724345972450,3.83099,2610.3,2609.9,6.15107]
[1724345973220,3.83099,2610.3,2609.9,2.3196]
[1724345974439,3.83099,2610.3,2609.7,3.83176]
[1724345974440,3.83135,2610.1,2609.7,2.3134]
[1724345974644,3.83146,2610.0,2609.5,6.23185]
[1724345975163,3.83146,2610.0,2609.5,10.06391]
[1724345975378,3.83135,2610.1,2609.6,3.83195]
[1724345976256,3.83143,2610.0,2609.6,3.83195]
[1724345976655,3.83162,2609.9,2609.5,2.3998]
[1724345976822,3.83173,2609.8,2609.5,2.3998]
[1724345977236,3.83187,2609.7,2609.5,2.3998]
[1724345977437,3.83173,2609.8,2609.5,2.3998]
[1724345978159,3.83172,2609.8,2609.5,2.3998]
[1724345979548,4.598044,2609.8,2609.3,6.32035]
[1724345979960,0.05385512,2609.7,2609.3,6.32035]
[1724345980360,4.598044,2609.8,2609.3,6.32035]
[1724345980556,0.05385512,2609.6,2609.3,10.15272]
[1724345980761,3.83172,2609.8,2609.3,10.15272]
[1724345980970,0.05385512,2609.5,2609.4,3.83229]
[1724345981172,3.83172,2609.8,2609.4,3.83229]
[1724345981363,0.05385512,2609.5,2609.4,3.83229]
[1724345981557,3.83172,2609.8,2609.4,3.83229]
[1724345981780,0.05385512,2609.5,2609.4,3.83229]
[1724345981987,3.83172,2609.8,2609.4,3.83229]
[1724345982175,0.05385512,2609.5,2609.4,3.83229]
[1724345982372,2.3876,2609.9,2609.4,3.8322]
[1724345982571,0.05385512,2609.5,2609.4,3.8322]
[1724345982878,3.83157,2609.9,2609.4,3.8322]
[1724345983046,0.05375024,2609.5,2609.4,3.8322]
[1724345983251,4.833699,2609.9,2609.4,3.8322]
[1724345983585,0.05375024,2609.5,2609.4,3.8322]
[1724345984079,4.833699,2609.9,2609.4,3.8322]
[1724345984388,0.05375024,2609.5,2609.4,3.8322]
[1724345984592,3.83144,2610.0,2609.5,3.83213]
[1724345984790,7.66297,2610.0,2609.5,3.83213]
[1724345984954,3.83144,2610.0,2609.5,3.83213]
[1724345985149,7.66296,2610.0,2609.5,3.83213]
[1724345985354,3.83144,2610.0,2609.5,3.83213]
[1724345985563,3.83157,2609.9,2609.5,3.83213]
[1724345986992,3.83142,2610.0,2609.5,3.83207]
[1724345987154,3.83142,2610.0,2609.6,2.4582]
[1724345987487,3.83142,2610.0,2609.6,6.2902]
[1724345987674,4.597699,2610.0,2609.6,6.2902]
[1724345988075,4.597699,2610.0,2609.6,2.4582]
[1724345988295,3.83173,2609.8,2609.6,2.4582]
[1724345988470,3.83173,2609.8,2609.4,6.32649]
[1724345989200,3.83156,2609.9,2609.4,10.1587]
[1724345989509,4.6744859,2609.9,2609.4,6.32641]
[1724345990196,4.6744859,2609.9,2609.4,10.15862]
[1724345990388,4.6744859,2609.9,2609.4,6.32641]
[1724345990588,0.8429259,2609.9,2609.5,3.83214]
[1724345990820,7.66295,2610.0,2609.5,3.83214]
[1724345991023,3.83157,2609.9,2609.4,10.15863]
[1724345991225,3.83157,2609.9,2609.4,6.32641]
[1724345991729,3.83157,2609.9,2609.4,10.15863]
[1724345992132,3.83157,2609.9,2609.5,3.83214]
[1724345993339,3.83157,2609.9,2609.5,5.48414]
[1724345993633,3.83157,2609.9,2609.5,1.652]
[1724345994904,0.05359296,2609.8,2609.5,1.652]
[1724345997641,0.05359296,2609.8,2609.5,5.48412]
[1724345999036,0.05358129,2609.7,2609.5,5.48412]
[1724345999238,3.83115,2610.2,2609.7,3.83175]
[1724345999414,0.05352885,2610.1,2609.7,5.48375]
[1724345999618,0.05352885,2610.1,2609.7,5.48384]
[1724346000252,0.05352885,2610.1,2610.0,2.4802]
[1724346000453,0.05352885,2610.1,2609.8,3.83161]
[1724346000956,3.83166,2609.9,2609.5,2.4802]
[1724346001110,3.83171,2609.8,2609.5,2.4802]
[1724346001306,4.825067,2609.8,2609.5,2.4802]
[1724346002148,3.83194,2609.7,2609.4,7.30876856]
[1724346002363,3.83208,2609.6,2609.4,7.30876856]
[1724346002545,3.83208,2609.6,2609.1,6.29473]
[1724346002907,3.83208,2609.6,2609.1,4.114]
[1724346003214,3.83179,2609.8,2609.2,3.83257]
[1724346003215,7.66363,2609.8,2609.2,3.83257]
[1724346003451,4.38188,2609.7,2609.2,3.83257]
[1724346003770,3.8318,2609.8,2609.4,2.3309]
[1724346004065,3.83207,2609.6,2609.1,7.81556]
[1724346004247,3.83207,2609.6,2609.1,3.9829]
[1724346004633,3.83207,2609.6,2609.1,7.81561]
[1724346004834,0.55,2609.7,2609.2,3.83258]
[1724346005046,4.38187,2609.7,2609.3,1.652]
[1724346005931,6.8315,2610.0,2609.5,1.652]
[1724346006130,6.83145,2610.0,2609.5,5.48407]
[1724346006446,6.83145,2610.0,2609.5,3.83207]
[1724346006976,3.83159,2609.9,2609.4,6.13191]
[1724346007326,3.83185,2609.8,2609.4,2.2997]
[1724346007963,3.83159,2609.9,2609.4,2.2997]
[1724346008263,8.15093188,2609.9,2609.4,2.2997]
[1724346008465,10.46265188,2609.9,2609.3,9.31669]
[1724346008771,8.15097188,2609.9,2609.3,5.48431]
[1724346008929,4.31928188,2609.9,2609.3,5.48431]
[1724346009265,4.31928188,2609.9,2609.3,9.31666]
[1724346009444,8.15093188,2609.9,2609.3,5.48431]
[1724346009646,8.15093188,2609.9,2609.3,9.31667]
[1724346009863,3.83171,2609.8,2609.3,5.48431]
[1724346010169,3.83171,2609.8,2609.3,9.31668]
[1724346010728,3.06214019,2609.8,2609.2,9.63156856]
[1724346010934,3.83217,2609.5,2609.2,7.30876856]
[1724346011157,0.55,2609.7,2609.2,7.30876856]
[1724346011381,3.83202,2609.6,2609.2,8.96076856]
[1724346011670,7.66416,2609.6,2609.3,2.2559]
[1724346011843,3.83215,2609.5,2609.3,2.2559]
[1724346012041,3.83241,2609.4,2609.2,7.30876856]
[1724346012232,0.50489769,2609.6,2608.9,12.45]
[1724346012233,3.83244,2609.3,2608.9,2.3471]
[1724346012434,4.0681,2609.6,2608.9,6.18013]
[1724346012644,3.83244,2609.3,2608.9,2.3471]
[1724346012980,3.83268,2609.2,2608.9,2.3471]
[1724346013330,3.83272,2609.2,2608.9,2.3471]
[1724346013534,3.83275,2609.1,2608.9,2.3471]
[1724346014466,0.548472,2609.2,2608.9,2.3471]
[1724346014869,3.83281,2609.1,2608.6,12.79422856]
[1724346015036,6.0349,2609.0,2608.6,7.30876856]
[1724346015227,6.0349,2609.0,2608.5,2.4629]